[Event "Titled Tuesday Blitz July 26 Early 2022"]
[White "Kamsky, Gata"]
[Black "Bortnyk, Olexandr"]
[WhiteFideId "2000024"]
[BlackFideId "14120828"]
[WhiteElo "2645"]
[BlackElo "2723"]
[Result "0-1"]
[Round "09"]
[TimeControl "180+1"]
[Date "2022.07.26"]
[WhiteClock "0:00:10"]
[BlackClock "0:00:21"]

1. e4 {[%clk 0:03:00]}  d6 {[%clk 0:02:52]} 2. d4 {[%clk 0:02:59]}  Nf6 {[%clk 0:02:46]} 3. Bd3 {[%clk 0:02:58]}  e5 {[%clk 0:02:43]} 4. c3 {[%clk 0:02:58]}  Be7 {[%clk 0:02:41]} 5. Nf3 {[%clk 0:02:58]}  Nbd7 {[%clk 0:02:41]} 6. O-O {[%clk 0:02:58]}  b6 {[%clk 0:02:41]} 7. Re1 {[%clk 0:02:56]}  Bb7 {[%clk 0:02:42]} 8. a4 {[%clk 0:02:56]}  a5 {[%clk 0:02:41]} 9. Nbd2 {[%clk 0:02:45]}  O-O {[%clk 0:02:39]} 10. Bb5 {[%clk 0:02:41]}  c6 {[%clk 0:02:31]} 11. Bf1 {[%clk 0:02:40]}  Qc7 {[%clk 0:02:30]} 12. Nc4 {[%clk 0:02:37]}  Rfe8 {[%clk 0:02:25]} 13. Bg5 {[%clk 0:02:34]}  exd4 {[%clk 0:02:09]} 14. cxd4 {[%clk 0:02:20]}  d5 {[%clk 0:01:57]} 15. exd5 {[%clk 0:02:17]}  cxd5 {[%clk 0:01:54]} 16. Nce5 {[%clk 0:02:13]}  Nxe5 {[%clk 0:01:54]} 17. Nxe5 {[%clk 0:02:07]}  Ne4 {[%clk 0:01:46]} 18. Rc1 {[%clk 0:02:05]}  Qd6 {[%clk 0:01:42]} 19. Bxe7 {[%clk 0:02:04]}  Rxe7 {[%clk 0:01:42]} 20. f3 {[%clk 0:02:04]}  Nf6 {[%clk 0:01:40]} 21. Qb3 {[%clk 0:02:00]}  g6 {[%clk 0:01:31]} 22. Bb5 {[%clk 0:01:46]}  Nh5 {[%clk 0:01:20]} 23. g3 {[%clk 0:01:36]}  Ng7 {[%clk 0:01:17]} 24. Ng4 {[%clk 0:01:18]}  Nf5 {[%clk 0:01:13]} 25. Qc3 {[%clk 0:01:13]}  Rc8 {[%clk 0:01:10]} 26. Qd2 {[%clk 0:01:08]}  Rxc1 {[%clk 0:01:06]} 27. Rxc1 {[%clk 0:01:06]}  h5 {[%clk 0:00:53]} 28. Nf2 {[%clk 0:01:06]}  Qf6 {[%clk 0:00:49]} 29. Qf4 {[%clk 0:00:57]}  Qxd4 {[%clk 0:00:48]} 30. Qxd4 {[%clk 0:00:25]}  Nxd4 {[%clk 0:00:49]} 31. f4 {[%clk 0:00:25]}  Nxb5 {[%clk 0:00:35]} 32. axb5 {[%clk 0:00:24]}  d4 {[%clk 0:00:35]} 33. Kf1 {[%clk 0:00:19]}  Bf3 {[%clk 0:00:34]} 34. Rc2 {[%clk 0:00:19]}  Re3 {[%clk 0:00:20]} 35. Rd2 {[%clk 0:00:15]}  Rb3 {[%clk 0:00:20]} 36. Rxd4 {[%clk 0:00:13]}  Rxb2 {[%clk 0:00:19]} 37. Nd3 {[%clk 0:00:12]}  Be2+ {[%clk 0:00:19]} 38. Ke1 {[%clk 0:00:11]}  Bxd3 {[%clk 0:00:20]} 39. Rxd3 {[%clk 0:00:10]}  Rxb5 {[%clk 0:00:21]} 0-1


[Site "https://www.chess.com"]

[Event "Titled Tuesday Blitz July 26 Early 2022"]
[White "Kravtsiv, Martyn"]
[Black "Harshavardhan G B"]
[WhiteFideId "14113147"]
[BlackFideId "25059009"]
[WhiteElo "2694"]
[BlackElo "1831"]
[Result "1-0"]
[Round "09"]
[TimeControl "180+1"]
[Date "2022.07.26"]
[WhiteClock "0:00:39"]
[BlackClock "0:00:03"]

1. e4 {[%clk 0:03:00]}  e5 {[%clk 0:02:59]} 2. Nf3 {[%clk 0:03:00]}  Nc6 {[%clk 0:03:00]} 3. Nc3 {[%clk 0:03:01]}  Nf6 {[%clk 0:02:59]} 4. a4 {[%clk 0:03:01]}  g6 {[%clk 0:02:55]} 5. Bc4 {[%clk 0:02:59]}  Bg7 {[%clk 0:02:54]} 6. d3 {[%clk 0:02:59]}  h6 {[%clk 0:02:52]} 7. O-O {[%clk 0:02:57]}  d6 {[%clk 0:02:52]} 8. Be3 {[%clk 0:02:56]}  O-O {[%clk 0:02:52]} 9. h3 {[%clk 0:02:56]}  Kh8 {[%clk 0:02:42]} 10. a5 {[%clk 0:02:53]}  a6 {[%clk 0:02:40]} 11. d4 {[%clk 0:02:52]}  exd4 {[%clk 0:02:32]} 12. Nxd4 {[%clk 0:02:53]}  Ne5 {[%clk 0:02:32]} 13. Bb3 {[%clk 0:02:37]}  c5 {[%clk 0:02:19]} 14. Nf3 {[%clk 0:02:32]}  Nc6 {[%clk 0:02:14]} 15. e5 {[%clk 0:02:27]}  Ne8 {[%clk 0:01:47]} 16. exd6 {[%clk 0:02:26]}  Nxa5 {[%clk 0:01:46]} 17. d7 {[%clk 0:02:25]}  Bxd7 {[%clk 0:01:29]} 18. Rxa5 {[%clk 0:02:24]}  Qxa5 {[%clk 0:01:28]} 19. Qxd7 {[%clk 0:02:23]}  b6 {[%clk 0:01:26]} 20. Bxf7 {[%clk 0:02:06]}  Qb4 {[%clk 0:01:20]} 21. Bxg6 {[%clk 0:02:00]}  Nf6 {[%clk 0:01:05]} 22. Qe7 {[%clk 0:01:45]}  Qxb2 {[%clk 0:01:02]} 23. Ne4 {[%clk 0:01:29]}  Rae8 {[%clk 0:00:42]} 24. Bxe8 {[%clk 0:01:21]}  Rxe8 {[%clk 0:00:43]} 25. Qf7 {[%clk 0:01:17]}  Rxe4 {[%clk 0:00:41]} 26. Rd1 {[%clk 0:01:17]}  Qxc2 {[%clk 0:00:24]} 27. Rd6 {[%clk 0:00:54]}  Qb2 {[%clk 0:00:05]} 28. Bxh6 {[%clk 0:00:45]}  Bxh6 {[%clk 0:00:04]} 29. Rxf6 {[%clk 0:00:43]}  Bg7 {[%clk 0:00:03]} 30. Rf5 {[%clk 0:00:39]} 1-0


[Site "https://www.chess.com"]

[Event "Titled Tuesday Blitz July 26 Early 2022"]
[White "Kubicka, Anna"]
[Black "Molina, Roberto Junio Brito"]
[WhiteFideId "1152254"]
[BlackFideId "2109450"]
[WhiteElo "2025"]
[BlackElo "2432"]
[Result "0-1"]
[Round "09"]
[TimeControl "180+1"]
[Date "2022.07.26"]
[WhiteClock "0:00:02"]
[BlackClock "0:00:46"]

1. e4 {[%clk 0:02:32]}  c6 {[%clk 0:03:00]} 2. d4 {[%clk 0:02:31]}  d5 {[%clk 0:03:01]} 3. e5 {[%clk 0:02:31]}  Bf5 {[%clk 0:03:01]} 4. h4 {[%clk 0:02:31]}  Qb6 {[%clk 0:03:00]} 5. g4 {[%clk 0:02:29]}  Bd7 {[%clk 0:02:59]} 6. Nc3 {[%clk 0:02:21]}  h5 {[%clk 0:02:52]} 7. g5 {[%clk 0:02:18]}  Bf5 {[%clk 0:02:48]} 8. Nge2 {[%clk 0:02:09]}  e6 {[%clk 0:02:47]} 9. Ng3 {[%clk 0:02:09]}  g6 {[%clk 0:02:44]} 10. Nxf5 {[%clk 0:02:08]}  exf5 {[%clk 0:02:43]} 11. a3 {[%clk 0:02:04]}  Na6 {[%clk 0:02:38]} 12. Be2 {[%clk 0:01:57]}  Nc7 {[%clk 0:02:38]} 13. O-O {[%clk 0:01:55]}  Ne6 {[%clk 0:02:37]} 14. Be3 {[%clk 0:01:46]}  f4 {[%clk 0:02:17]} 15. Bc1 {[%clk 0:01:33]}  Qxd4 {[%clk 0:02:17]} 16. Qxd4 {[%clk 0:01:26]}  Nxd4 {[%clk 0:02:18]} 17. Bd3 {[%clk 0:01:12]}  Ne6 {[%clk 0:02:15]} 18. f3 {[%clk 0:01:07]}  Bc5+ {[%clk 0:02:14]} 19. Kg2 {[%clk 0:01:07]}  Be3 {[%clk 0:02:14]} 20. Bxe3 {[%clk 0:01:04]}  fxe3 {[%clk 0:02:14]} 21. f4 {[%clk 0:01:05]}  Ne7 {[%clk 0:02:06]} 22. Rae1 {[%clk 0:01:04]}  Nc5 {[%clk 0:01:44]} 23. Be2 {[%clk 0:00:47]}  d4 {[%clk 0:01:43]} 24. b4 {[%clk 0:00:41]}  dxc3 {[%clk 0:01:35]} 25. bxc5 {[%clk 0:00:41]}  O-O-O {[%clk 0:01:33]} 26. Bd3 {[%clk 0:00:37]}  Rd5 {[%clk 0:01:28]} 27. Rxe3 {[%clk 0:00:34]}  Rxc5 {[%clk 0:01:28]} 28. e6 {[%clk 0:00:33]}  Rf8 {[%clk 0:01:27]} 29. Rfe1 {[%clk 0:00:23]}  f6 {[%clk 0:01:26]} 30. Kg3 {[%clk 0:00:20]}  fxg5 {[%clk 0:01:23]} 31. fxg5 {[%clk 0:00:15]}  Kc7 {[%clk 0:01:21]} 32. Re5 {[%clk 0:00:12]}  Rxe5 {[%clk 0:01:20]} 33. Rxe5 {[%clk 0:00:13]}  Kd6 {[%clk 0:01:20]} 34. Re3 {[%clk 0:00:12]}  a5 {[%clk 0:01:17]} 35. Be4 {[%clk 0:00:11]}  Rf1 {[%clk 0:01:10]} 36. Rxc3 {[%clk 0:00:10]}  Kxe6 {[%clk 0:01:09]} 37. Bg2 {[%clk 0:00:10]}  Re1 {[%clk 0:01:05]} 38. Bh3+ {[%clk 0:00:09]}  Kd6 {[%clk 0:01:00]} 39. Rd3+ {[%clk 0:00:09]}  Kc5 {[%clk 0:01:00]} 40. Rd7 {[%clk 0:00:08]}  b5 {[%clk 0:00:58]} 41. Kf2 {[%clk 0:00:07]}  Re5 {[%clk 0:00:57]} 42. Ra7 {[%clk 0:00:02]}  a4 {[%clk 0:00:57]} 43. Kf3 {[%clk 0:00:02]}  Nd5 {[%clk 0:00:51]} 44. Kf2 {[%clk 0:00:02]}  Re4 {[%clk 0:00:47]} 45. Bg2 {[%clk 0:00:02]}  Rxh4 {[%clk 0:00:47]} 46. Rg7 {[%clk 0:00:02]}  Rg4 {[%clk 0:00:46]} 0-1


[Site "https://www.chess.com"]

[Event "Titled Tuesday Blitz July 26 Early 2022"]
[White "Kuderinov, Kirill"]
[Black "Gheorghiu, Calin"]
[WhiteFideId "13701568"]
[BlackFideId "1200305"]
[WhiteElo "2465"]
[BlackElo "2168"]
[Result "1-0"]
[Round "09"]
[TimeControl "180+1"]
[Date "2022.07.26"]
[WhiteClock "0:00:56"]
[BlackClock "0:00:02"]

1. e4 {[%clk 0:02:58]}  g6 {[%clk 0:02:59]} 2. d4 {[%clk 0:02:57]}  c6 {[%clk 0:02:59]} 3. Nc3 {[%clk 0:02:58]}  Bg7 {[%clk 0:02:59]} 4. Nf3 {[%clk 0:02:57]}  d6 {[%clk 0:02:57]} 5. Bd3 {[%clk 0:02:55]}  Nf6 {[%clk 0:02:57]} 6. O-O {[%clk 0:02:55]}  O-O {[%clk 0:02:55]} 7. Bg5 {[%clk 0:02:55]}  h6 {[%clk 0:02:55]} 8. Bh4 {[%clk 0:02:55]}  b5 {[%clk 0:02:53]} 9. a3 {[%clk 0:02:52]}  Qc7 {[%clk 0:02:46]} 10. e5 {[%clk 0:02:51]}  Nh5 {[%clk 0:02:35]} 11. Re1 {[%clk 0:02:46]}  d5 {[%clk 0:02:29]} 12. Bg3 {[%clk 0:02:42]}  Nxg3 {[%clk 0:02:28]} 13. hxg3 {[%clk 0:02:43]}  Bg4 {[%clk 0:02:28]} 14. Nb1 {[%clk 0:02:36]}  e6 {[%clk 0:02:25]} 15. Nbd2 {[%clk 0:02:35]}  Nd7 {[%clk 0:02:25]} 16. c3 {[%clk 0:02:30]}  a6 {[%clk 0:02:23]} 17. Qc2 {[%clk 0:02:28]}  c5 {[%clk 0:02:23]} 18. Nh2 {[%clk 0:02:26]}  Bf5 {[%clk 0:02:23]} 19. Bxf5 {[%clk 0:02:25]}  exf5 {[%clk 0:02:22]} 20. Qd3 {[%clk 0:02:19]}  Rfe8 {[%clk 0:02:22]} 21. Qf3 {[%clk 0:02:15]}  Qc6 {[%clk 0:02:13]} 22. Ndf1 {[%clk 0:02:12]}  a5 {[%clk 0:02:12]} 23. g4 {[%clk 0:02:07]}  fxg4 {[%clk 0:02:11]} 24. Nxg4 {[%clk 0:02:08]}  b4 {[%clk 0:02:10]} 25. axb4 {[%clk 0:02:06]}  axb4 {[%clk 0:02:11]} 26. Rxa8 {[%clk 0:02:00]}  Qxa8 {[%clk 0:02:11]} 27. Nfe3 {[%clk 0:01:57]}  cxd4 {[%clk 0:02:08]} 28. cxd4 {[%clk 0:01:52]}  Nb6 {[%clk 0:02:05]} 29. Rc1 {[%clk 0:01:49]}  Qa2 {[%clk 0:02:03]} 30. Rc7 {[%clk 0:01:47]}  Rf8 {[%clk 0:02:00]} 31. Nf6+ {[%clk 0:01:47]}  Kh8 {[%clk 0:01:59]} 32. Nexd5 {[%clk 0:01:42]}  Nxd5 {[%clk 0:01:55]} 33. Nxd5 {[%clk 0:01:41]}  Qxb2 {[%clk 0:01:49]} 34. Qe4 {[%clk 0:01:38]}  Qd2 {[%clk 0:01:42]} 35. g3 {[%clk 0:01:34]}  b3 {[%clk 0:01:41]} 36. Kg2 {[%clk 0:01:33]}  b2 {[%clk 0:01:41]} 37. Rb7 {[%clk 0:01:33]}  Rd8 {[%clk 0:01:38]} 38. Rxf7 {[%clk 0:01:21]}  Rxd5 {[%clk 0:00:42]} 39. Qxd5 {[%clk 0:01:18]}  b1=Q {[%clk 0:00:42]} 40. Qd8+ {[%clk 0:01:18]}  Kh7 {[%clk 0:00:42]} 41. Qf6 {[%clk 0:01:19]}  Qe4+ {[%clk 0:00:15]} 42. Kh2 {[%clk 0:01:17]}  Qxf2+ {[%clk 0:00:06]} 43. Qxf2 {[%clk 0:01:18]}  h5 {[%clk 0:00:06]} 44. Rf4 {[%clk 0:01:11]}  Qd5 {[%clk 0:00:06]} 45. Qf3 {[%clk 0:01:09]}  Qa2+ {[%clk 0:00:06]} 46. Kh3 {[%clk 0:01:09]}  Qe6+ {[%clk 0:00:06]} 47. Kg2 {[%clk 0:01:08]}  Qa2+ {[%clk 0:00:06]} 48. Qf2 {[%clk 0:01:05]}  Qd5+ {[%clk 0:00:06]} 49. Kh2 {[%clk 0:01:05]}  Qe6 {[%clk 0:00:03]} 50. Re4 {[%clk 0:01:01]}  Qd5 {[%clk 0:00:03]} 51. Qe2 {[%clk 0:01:01]}  Bf8 {[%clk 0:00:04]} 52. e6 {[%clk 0:01:00]}  Be7 {[%clk 0:00:04]} 53. Qf3 {[%clk 0:00:58]}  Qa2+ {[%clk 0:00:02]} 54. Kh3 {[%clk 0:00:58]}  Kh6 {[%clk 0:00:02]} 55. Qf4+ {[%clk 0:00:56]} 1-0


[Site "https://www.chess.com"]

[Event "Titled Tuesday Blitz July 26 Early 2022"]
[White "Kupervaser, Erez"]
[Black "Yeremyan, Alen"]
[WhiteFideId "2814587"]
[BlackFideId "13308998"]
[WhiteElo "1832"]
[BlackElo "2158"]
[Result "1-0"]
[Round "09"]
[TimeControl "180+1"]
[Date "2022.07.26"]
[WhiteClock "0:00:53"]
[BlackClock "0:01:29"]

1. e4 {[%clk 0:03:00]}  c5 {[%clk 0:02:57]} 2. Nf3 {[%clk 0:03:01]}  Nc6 {[%clk 0:02:55]} 3. Bc4 {[%clk 0:03:00]}  e6 {[%clk 0:02:54]} 4. O-O {[%clk 0:03:00]}  d6 {[%clk 0:02:55]} 5. Re1 {[%clk 0:02:58]}  g6 {[%clk 0:02:55]} 6. c3 {[%clk 0:02:58]}  Bg7 {[%clk 0:02:55]} 7. Bf1 {[%clk 0:02:58]}  Nge7 {[%clk 0:02:54]} 8. d4 {[%clk 0:02:58]}  O-O {[%clk 0:02:54]} 9. a4 {[%clk 0:02:46]}  b6 {[%clk 0:02:52]} 10. Na3 {[%clk 0:02:46]}  Bb7 {[%clk 0:02:52]} 11. Nc4 {[%clk 0:02:43]}  cxd4 {[%clk 0:02:50]} 12. cxd4 {[%clk 0:02:43]}  d5 {[%clk 0:02:51]} 13. exd5 {[%clk 0:02:41]}  Nxd5 {[%clk 0:02:51]} 14. Nce5 {[%clk 0:02:40]}  Nxe5 {[%clk 0:02:47]} 15. dxe5 {[%clk 0:02:39]}  Rc8 {[%clk 0:02:46]} 16. Bg5 {[%clk 0:02:39]}  Qc7 {[%clk 0:02:43]} 17. Rc1 {[%clk 0:02:34]}  Qb8 {[%clk 0:02:44]} 18. Qd4 {[%clk 0:02:32]}  Rxc1 {[%clk 0:02:39]} 19. Rxc1 {[%clk 0:02:33]}  Rc8 {[%clk 0:02:39]} 20. Rxc8+ {[%clk 0:02:15]}  Qxc8 {[%clk 0:02:40]} 21. a5 {[%clk 0:02:16]}  Bf8 {[%clk 0:02:30]} 22. axb6 {[%clk 0:02:08]}  axb6 {[%clk 0:02:31]} 23. Qh4 {[%clk 0:01:52]}  Qc2 {[%clk 0:02:24]} 24. Bh6 {[%clk 0:01:05]}  Be7 {[%clk 0:02:23]} 25. Qd4 {[%clk 0:01:03]}  Bc5 {[%clk 0:02:16]} 26. Qh4 {[%clk 0:01:03]}  Ne7 {[%clk 0:02:15]} 27. b4 {[%clk 0:00:58]}  Bxf3 {[%clk 0:01:42]} 28. bxc5 {[%clk 0:00:57]}  Nc6 {[%clk 0:01:29]} 29. Qf6 {[%clk 0:00:53]} 1-0


[Site "https://www.chess.com"]

[Event "Titled Tuesday Blitz July 26 Early 2022"]
[White "Lianes Garcia, Marcos"]
[Black "Lewtak, Damian"]
[WhiteFideId "32060777"]
[BlackFideId "1141724"]
[WhiteElo "2334"]
[BlackElo "2359"]
[Result "0-1"]
[Round "09"]
[TimeControl "180+1"]
[Date "2022.07.26"]
[WhiteClock "0:00:09"]
[BlackClock "0:00:04"]

1. e4 {[%clk 0:03:00]}  b6 {[%clk 0:02:57]} 2. g3 {[%clk 0:03:01]}  Bb7 {[%clk 0:02:57]} 3. Bg2 {[%clk 0:03:01]}  g6 {[%clk 0:02:58]} 4. Ne2 {[%clk 0:03:01]}  Bg7 {[%clk 0:02:58]} 5. O-O {[%clk 0:03:02]}  d6 {[%clk 0:02:59]} 6. d4 {[%clk 0:03:02]}  Nd7 {[%clk 0:02:59]} 7. h3 {[%clk 0:02:58]}  e6 {[%clk 0:03:00]} 8. c4 {[%clk 0:02:56]}  Ne7 {[%clk 0:03:00]} 9. Nbc3 {[%clk 0:02:56]}  O-O {[%clk 0:02:59]} 10. Be3 {[%clk 0:02:57]}  e5 {[%clk 0:02:59]} 11. Qd2 {[%clk 0:02:55]}  f5 {[%clk 0:02:56]} 12. Rad1 {[%clk 0:02:42]}  Nf6 {[%clk 0:02:52]} 13. Bh6 {[%clk 0:02:27]}  fxe4 {[%clk 0:02:46]} 14. Bxg7 {[%clk 0:02:27]}  Kxg7 {[%clk 0:02:47]} 15. dxe5 {[%clk 0:02:18]}  dxe5 {[%clk 0:02:46]} 16. Qg5 {[%clk 0:02:17]}  Qe8 {[%clk 0:02:34]} 17. Qxe5 {[%clk 0:02:15]}  Nc6 {[%clk 0:02:34]} 18. Qxc7+ {[%clk 0:02:12]}  Rf7 {[%clk 0:02:34]} 19. Qf4 {[%clk 0:02:02]}  Na5 {[%clk 0:02:30]} 20. b3 {[%clk 0:01:57]}  Rc8 {[%clk 0:02:19]} 21. Qe3 {[%clk 0:01:54]}  Re7 {[%clk 0:02:14]} 22. Nf4 {[%clk 0:01:47]}  Nc6 {[%clk 0:02:10]} 23. Nb5 {[%clk 0:01:34]}  Rd8 {[%clk 0:02:00]} 24. Nd6 {[%clk 0:01:34]}  Qd7 {[%clk 0:02:00]} 25. Nxb7 {[%clk 0:01:26]}  Qxd1 {[%clk 0:02:01]} 26. Rxd1 {[%clk 0:01:15]}  Rxd1+ {[%clk 0:02:00]} 27. Kh2 {[%clk 0:01:16]}  Rxb7 {[%clk 0:02:01]} 28. Nd5 {[%clk 0:01:14]}  Rd3 {[%clk 0:01:47]} 29. Qe1 {[%clk 0:01:01]}  Rd4 {[%clk 0:01:41]} 30. Nxf6 {[%clk 0:00:49]}  Kxf6 {[%clk 0:01:42]} 31. Qe3 {[%clk 0:00:49]}  Re7 {[%clk 0:01:30]} 32. f3 {[%clk 0:00:37]}  Kg7 {[%clk 0:01:29]} 33. fxe4 {[%clk 0:00:36]}  Rdd7 {[%clk 0:01:22]} 34. c5 {[%clk 0:00:29]}  Ne5 {[%clk 0:01:15]} 35. cxb6 {[%clk 0:00:28]}  axb6 {[%clk 0:01:16]} 36. Qxb6 {[%clk 0:00:27]}  Rd2 {[%clk 0:01:16]} 37. g4 {[%clk 0:00:21]}  Rf7 {[%clk 0:01:12]} 38. Qc5 {[%clk 0:00:20]}  Nf3+ {[%clk 0:00:50]} 39. Kg3 {[%clk 0:00:17]}  Rd3 {[%clk 0:00:51]} 40. Bxf3 {[%clk 0:00:11]}  Rfxf3+ {[%clk 0:00:52]} 41. Kg2 {[%clk 0:00:11]}  Rg3+ {[%clk 0:00:52]} 42. Kf2 {[%clk 0:00:11]}  Rxh3 {[%clk 0:00:51]} 43. Qe7+ {[%clk 0:00:07]}  Kh6 {[%clk 0:00:48]} 44. g5+ {[%clk 0:00:07]}  Kh5 {[%clk 0:00:48]} 45. Qxh7+ {[%clk 0:00:08]}  Kxg5 {[%clk 0:00:47]} 46. Qe7+ {[%clk 0:00:09]}  Kf4 {[%clk 0:00:48]} 47. Qf6+ {[%clk 0:00:09]}  Kxe4 {[%clk 0:00:47]} 48. Qxg6+ {[%clk 0:00:09]}  Kd4 {[%clk 0:00:48]} 49. Qf6+ {[%clk 0:00:09]}  Kc5 {[%clk 0:00:46]} 50. Ke2 {[%clk 0:00:05]}  Rc3 {[%clk 0:00:43]} 51. Qe5+ {[%clk 0:00:03]}  Kb4 {[%clk 0:00:40]} 52. Qd6+ {[%clk 0:00:04]}  Ka5 {[%clk 0:00:34]} 53. Kd2 {[%clk 0:00:05]}  Rcg3 {[%clk 0:00:19]} 54. Ke2 {[%clk 0:00:03]}  Rc3 {[%clk 0:00:14]} 55. Kd2 {[%clk 0:00:01]}  Rcg3 {[%clk 0:00:13]} 56. Ke2 {[%clk 0:00:01]}  Rg2+ {[%clk 0:00:12]} 57. Kf1 {[%clk 0:00:02]}  Rgh2 {[%clk 0:00:13]} 58. Qd8+ {[%clk 0:00:02]}  Kb5 {[%clk 0:00:12]} 59. Qd6 {[%clk 0:00:03]}  Rh6 {[%clk 0:00:07]} 60. Qd7+ {[%clk 0:00:03]}  Kb4 {[%clk 0:00:06]} 61. Qe7+ {[%clk 0:00:03]}  Kc3 {[%clk 0:00:06]} 62. a4 {[%clk 0:00:04]}  Kd3 {[%clk 0:00:05]} 63. a5 {[%clk 0:00:04]}  Rh7 {[%clk 0:00:03]} 64. Qd6+ {[%clk 0:00:04]}  Ke3 {[%clk 0:00:04]} 65. a6 {[%clk 0:00:05]}  Rh1+ {[%clk 0:00:04]} 66. Kg2 {[%clk 0:00:05]}  R1h6 {[%clk 0:00:03]} 67. Qe5+ {[%clk 0:00:05]}  Kd3 {[%clk 0:00:03]} 68. a7 {[%clk 0:00:06]}  Rg6+ {[%clk 0:00:03]} 69. Kf3 {[%clk 0:00:06]}  Rf7+ {[%clk 0:00:03]} 70. Qf4 {[%clk 0:00:06]}  Rxf4+ {[%clk 0:00:03]} 71. Kxf4 {[%clk 0:00:07]}  Ra6 {[%clk 0:00:04]} 72. Ke5 {[%clk 0:00:08]}  Rxa7 {[%clk 0:00:04]} 73. Kd5 {[%clk 0:00:09]}  Kc3 {[%clk 0:00:04]} 0-1


[Site "https://www.chess.com"]

[Event "Titled Tuesday Blitz July 26 Early 2022"]
[White "Martin Barcelo, Carles"]
[Black "Jeet, Jain"]
[WhiteFideId "24561444"]
[BlackFideId "5073022"]
[WhiteElo "1922"]
[BlackElo "2055"]
[Result "0-1"]
[Round "09"]
[TimeControl "180+1"]
[Date "2022.07.27"]
[WhiteClock "0:00:01"]
[BlackClock "0:00:55"]

1. e4 {[%clk 0:02:59]}  c5 {[%clk 0:02:57]} 2. Nc3 {[%clk 0:02:52]}  g6 {[%clk 0:02:54]} 3. Bc4 {[%clk 0:02:39]}  Bg7 {[%clk 0:02:54]} 4. Qf3 {[%clk 0:02:30]}  e6 {[%clk 0:02:52]} 5. Nb5 {[%clk 0:02:29]}  d6 {[%clk 0:02:48]} 6. Qg3 {[%clk 0:02:29]}  e5 {[%clk 0:02:47]} 7. a4 {[%clk 0:02:17]}  Nf6 {[%clk 0:02:42]} 8. d3 {[%clk 0:02:16]}  h6 {[%clk 0:02:41]} 9. f4 {[%clk 0:02:09]}  Nc6 {[%clk 0:02:41]} 10. Nf3 {[%clk 0:02:02]}  Nh5 {[%clk 0:02:33]} 11. Qf2 {[%clk 0:01:33]}  Nxf4 {[%clk 0:02:28]} 12. g3 {[%clk 0:01:18]}  Ne6 {[%clk 0:02:25]} 13. O-O {[%clk 0:01:17]}  O-O {[%clk 0:02:24]} 14. Nh4 {[%clk 0:01:14]}  Kh7 {[%clk 0:02:13]} 15. Nc3 {[%clk 0:01:02]}  Ncd4 {[%clk 0:02:07]} 16. Nd5 {[%clk 0:00:59]}  Ng5 {[%clk 0:01:59]} 17. Bxg5 {[%clk 0:00:50]}  hxg5 {[%clk 0:01:46]} 18. Nf3 {[%clk 0:00:51]}  Nxf3+ {[%clk 0:01:45]} 19. Qxf3 {[%clk 0:00:52]}  f5 {[%clk 0:01:45]} 20. Qg2 {[%clk 0:00:35]}  g4 {[%clk 0:01:45]} 21. Rf2 {[%clk 0:00:20]}  Bh6 {[%clk 0:01:43]} 22. Raf1 {[%clk 0:00:19]}  Kg7 {[%clk 0:01:38]} 23. Kh1 {[%clk 0:00:11]}  Bg5 {[%clk 0:01:38]} 24. Re2 {[%clk 0:00:05]}  a6 {[%clk 0:01:37]} 25. Ne3 {[%clk 0:00:05]}  Rb8 {[%clk 0:01:34]} 26. exf5 {[%clk 0:00:02]}  gxf5 {[%clk 0:01:35]} 27. Nd5 {[%clk 0:00:02]}  b5 {[%clk 0:01:34]} 28. axb5 {[%clk 0:00:02]}  axb5 {[%clk 0:01:35]} 29. Bb3 {[%clk 0:00:03]}  Bb7 {[%clk 0:01:25]} 30. Ref2 {[%clk 0:00:03]}  Qd7 {[%clk 0:01:22]} 31. Kg1 {[%clk 0:00:03]}  Bc8 {[%clk 0:01:16]} 32. c4 {[%clk 0:00:04]}  bxc4 {[%clk 0:01:15]} 33. Bxc4 {[%clk 0:00:05]}  Qb7 {[%clk 0:01:12]} 34. b3 {[%clk 0:00:05]}  Bd7 {[%clk 0:01:10]} 35. Kh1 {[%clk 0:00:05]}  Rf7 {[%clk 0:01:09]} 36. Kg1 {[%clk 0:00:06]}  Rh8 {[%clk 0:01:07]} 37. h4 {[%clk 0:00:07]}  gxh3 {[%clk 0:01:06]} 38. Qh2 {[%clk 0:00:07]}  Be6 {[%clk 0:01:05]} 39. Qh1 {[%clk 0:00:07]}  Qa8 {[%clk 0:01:00]} 40. Nc3 {[%clk 0:00:04]}  Bxc4 {[%clk 0:00:59]} 41. bxc4 {[%clk 0:00:04]}  Be3 {[%clk 0:00:59]} 42. Nd5 {[%clk 0:00:01]}  h2+ {[%clk 0:00:55]} 0-1


[Site "https://www.chess.com"]

[Event "Titled Tuesday Blitz July 26 Early 2022"]
[White "Martinez Alcantara, Jose Eduardo"]
[Black "Mardov, Dimitar"]
[WhiteFideId "3805662"]
[BlackFideId "30919495"]
[WhiteElo "2703"]
[BlackElo "2185"]
[Result "1-0"]
[Round "09"]
[TimeControl "180+1"]
[Date "2022.07.26"]
[WhiteClock "0:00:37"]
[BlackClock "0:00:04"]

1. e4 {[%clk 0:03:00]}  e5 {[%clk 0:02:57]} 2. Nf3 {[%clk 0:03:00]}  Nc6 {[%clk 0:02:57]} 3. Bb5 {[%clk 0:02:59]}  a6 {[%clk 0:02:51]} 4. Ba4 {[%clk 0:02:59]}  d6 {[%clk 0:02:51]} 5. O-O {[%clk 0:02:56]}  Bd7 {[%clk 0:02:40]} 6. c3 {[%clk 0:02:56]}  Nf6 {[%clk 0:02:40]} 7. Re1 {[%clk 0:02:55]}  g6 {[%clk 0:02:40]} 8. d4 {[%clk 0:02:55]}  Bg7 {[%clk 0:02:39]} 9. dxe5 {[%clk 0:02:45]}  Nxe5 {[%clk 0:02:31]} 10. Nxe5 {[%clk 0:02:44]}  dxe5 {[%clk 0:02:32]} 11. Bxd7+ {[%clk 0:02:38]}  Qxd7 {[%clk 0:02:33]} 12. Qxd7+ {[%clk 0:02:37]}  Nxd7 {[%clk 0:02:33]} 13. Be3 {[%clk 0:02:35]}  O-O-O {[%clk 0:02:25]} 14. Nd2 {[%clk 0:02:32]}  f5 {[%clk 0:02:17]} 15. f3 {[%clk 0:02:31]}  f4 {[%clk 0:02:16]} 16. Bf2 {[%clk 0:02:30]}  Nb8 {[%clk 0:02:04]} 17. Rad1 {[%clk 0:02:25]}  Nc6 {[%clk 0:02:03]} 18. Kf1 {[%clk 0:02:25]}  Rd7 {[%clk 0:02:02]} 19. Nb3 {[%clk 0:02:23]}  b6 {[%clk 0:01:56]} 20. Rxd7 {[%clk 0:02:22]}  Kxd7 {[%clk 0:01:57]} 21. Ke2 {[%clk 0:02:23]}  Ke6 {[%clk 0:01:52]} 22. Nc1 {[%clk 0:02:23]}  Rd8 {[%clk 0:01:51]} 23. Nd3 {[%clk 0:02:23]}  Bf8 {[%clk 0:01:45]} 24. Rd1 {[%clk 0:02:22]}  Be7 {[%clk 0:01:37]} 25. g3 {[%clk 0:02:18]}  g5 {[%clk 0:01:35]} 26. Rh1 {[%clk 0:02:09]}  Rg8 {[%clk 0:00:54]} 27. h4 {[%clk 0:01:52]}  fxg3 {[%clk 0:00:46]} 28. Bxg3 {[%clk 0:01:53]}  g4 {[%clk 0:00:39]} 29. f4 {[%clk 0:01:35]}  Bf6 {[%clk 0:00:39]} 30. Rf1 {[%clk 0:01:32]}  Bh8 {[%clk 0:00:25]} 31. f5+ {[%clk 0:01:23]}  Kf7 {[%clk 0:00:24]} 32. Rd1 {[%clk 0:01:06]}  Bf6 {[%clk 0:00:23]} 33. h5 {[%clk 0:00:57]}  Rg5 {[%clk 0:00:18]} 34. Nf2 {[%clk 0:00:44]}  Ke7 {[%clk 0:00:11]} 35. Bh4 {[%clk 0:00:41]}  Rxh5 {[%clk 0:00:11]} 36. Bxf6+ {[%clk 0:00:41]}  Kxf6 {[%clk 0:00:12]} 37. Nxg4+ {[%clk 0:00:42]}  Kg5 {[%clk 0:00:11]} 38. Nf2 {[%clk 0:00:40]}  Kf4 {[%clk 0:00:08]} 39. Rg1 {[%clk 0:00:38]}  Rh4 {[%clk 0:00:04]} 40. Rg7 {[%clk 0:00:38]}  Na5 {[%clk 0:00:04]} 41. f6 {[%clk 0:00:37]} 1-0


[Site "https://www.chess.com"]